bitfinex/quotes_BTCUSD_20250313
["timestamp","ask_amount","ask_price","bid_price","bid_amount"]
[1741871052043,0.01887993,83019.0,83010.0,0.012046]
[1741871052306,0.012045,83018.0,83010.0,0.012046]
[1741871052516,0.27183293,83019.0,83010.0,0.012046]
[1741871052711,0.01887993,83019.0,83018.0,0.252956]
[1741871052957,0.252917,83031.0,83022.0,0.252943]
[1741871053183,0.012044,83024.0,83012.0,0.3]
[1741871053390,0.240926,83013.0,83012.0,0.3]
[1741871053534,0.0001693,83013.0,83012.0,0.3]
[1741871053745,0.0001693,83013.0,83012.0,0.312046]
[1741871054159,0.0001693,83013.0,83012.0,0.3]
[1741871055129,0.24094,83008.0,83005.0,0.0458]
[1741871055328,0.240936,83010.0,83005.0,0.0458]
[1741871055604,0.2531413,83013.0,83005.0,0.298795]
[1741871055945,0.2531413,83013.0,83005.0,0.057847]
[1741871056164,0.0001693,83013.0,83007.0,0.012047]
[1741871056369,0.0001693,83013.0,83010.0,0.312046]
[1741871056578,0.0001693,83013.0,83010.0,0.552978]
[1741871056786,0.0001693,83013.0,83012.0,0.240929]
[1741871056991,0.0001693,83013.0,83010.0,0.3]
[1741871057194,0.0001693,83013.0,82987.0,0.0471]
[1741871057195,0.240985,82993.0,82987.0,0.0471]
[1741871057408,0.253047,82988.0,82987.0,0.0471]
[1741871057633,0.012049,82993.0,82987.0,0.0471]
[1741871057634,0.240988,82992.0,82987.0,0.0471]
[1741871057901,0.253037,82992.0,82987.0,0.0471]
[1741871058104,0.01887795,82991.0,82988.0,0.312049]
[1741871058243,0.01887795,82991.0,82990.0,0.312049]
[1741871058446,0.240929,83012.0,83004.0,0.24095]
[1741871058672,0.012046,83015.0,83005.0,0.012047]
[1741871058875,0.01887784,83008.0,83006.0,0.252993]
[1741871059068,0.01887784,83008.0,83007.0,0.012047]
[1741871059248,0.01887784,83008.0,83007.0,0.312047]
[1741871059452,0.2410963,83013.0,82995.0,0.012048]
[1741871059654,0.0122153,83013.0,83005.0,0.3]
[1741871059859,0.012047,83008.0,83002.0,0.3]
[1741871060098,0.01904506,83013.0,83002.0,0.3]
[1741871060259,0.03109106,83013.0,83006.0,0.240943]
[1741871060613,0.01904506,83013.0,83012.0,0.252975]
[1741871061112,0.01904506,83013.0,83010.0,0.3]
[1741871061316,0.01904506,83013.0,83011.0,0.252977]
[1741871061460,0.012046,83011.0,83010.0,0.3]
[1741871061876,0.01904506,83013.0,83010.0,0.240934]
[1741871062081,0.01904506,83013.0,83012.0,0.252975]
[1741871062082,0.0001693,83013.0,83012.0,0.252975]
[1741871062841,0.0001693,83013.0,83012.0,1.752975]
[1741871063409,0.0001693,83013.0,83012.0,2.17267599]
[1741871063615,0.0001693,83013.0,83012.0,2.22117599]
[1741871063793,0.0127248,83048.0,83036.0,0.252901]
[1741871063996,0.24083,83046.0,83034.0,0.240862]
[1741871064356,0.240852,83039.0,83031.0,0.3]
[1741871064561,0.240859,83036.0,83031.0,0.3]
[1741871064763,0.240868,83033.0,83031.0,0.3]
[1741871064968,6e-07,83037.0,83031.0,0.3]
[1741871065098,6e-07,83037.0,83034.0,0.252907]
[1741871065515,0.240862,83036.0,83034.0,1.5]
[1741871065706,0.2529006,83037.0,83036.0,0.012042]
[1741871065707,6e-07,83037.0,83036.0,0.012042]
[1741871066124,0.012042,83036.0,83035.0,0.3]
[1741871066534,0.012042,83036.0,83030.0,0.1662]
[1741871066535,0.252916,83031.0,83030.0,0.1662]
[1741871066754,0.240896,83024.0,83020.0,0.3]
[1741871066980,0.252913,83033.0,83023.0,0.012044]
[1741871067164,0.0122112,83036.0,83030.0,0.012043]
[1741871067380,0.0122112,83036.0,83020.0,0.35248482]
[1741871067381,0.25974002,83033.0,83022.0,0.3]
[1741871067594,0.240896,83024.0,83019.0,0.1662]
[1741871067807,0.25294,83024.0,83019.0,0.407107]
[1741871068015,0.25295,83020.0,83019.0,0.1662]
[1741871068236,0.240911,83018.0,83012.0,0.0485]
[1741871068432,0.012046,83014.0,83012.0,0.0485]
[1741871068664,0.01887238,83021.0,83012.0,0.060546]
[1741871068796,0.01887238,83021.0,83018.0,0.240908]
[1741871069002,0.01887238,83021.0,83012.0,0.0485]
[1741871069003,0.012046,83013.0,83012.0,0.0485]
[1741871069212,0.012045,83018.0,83006.0,0.012047]
[1741871069411,0.012046,83014.0,83010.0,0.3]
[1741871069607,0.01887238,83021.0,83016.0,0.240917]
[1741871069814,0.01887238,83021.0,83000.0,0.43009363]
[1741871069815,0.01887238,83021.0,83009.0,0.3]
[1741871070177,0.240922,83015.0,83009.0,0.540935]
[1741871070295,0.240927,83013.0,83009.0,0.3]
[1741871070505,0.252976,83012.0,83009.0,0.3]
[1741871070928,0.24093,83012.0,83008.0,0.552985]
[1741871071182,0.012046,83014.0,83009.0,0.252981]
[1741871071391,0.252953,83020.0,83015.0,0.240919]
[1741871071609,0.252955,83019.0,83014.0,0.012046]
[1741871072209,0.240882,83028.0,83020.0,0.240905]
[1741871072502,0.24089,83026.0,83020.0,0.012045]
[1741871072740,0.012044,83025.0,83014.0,0.3]
[1741871072950,0.240905,83020.0,83015.0,1.5]
[1741871073159,0.252954,83019.0,83015.0,1.5]
[1741871073364,0.012046,83015.0,83014.0,0.3]
[1741871073570,0.252966,83015.0,83014.0,0.3]
[1741871073772,0.252966,83015.0,83004.0,0.178247]
[1741871073773,0.240948,83006.0,83005.0,1.5]
[1741871073988,0.253017,82998.0,82989.0,0.012049]
[1741871074191,0.012049,82988.0,82987.0,0.0003384]
[1741871074616,0.012049,82989.0,82987.0,0.0003384]
[1741871074826,0.012048,82997.0,82989.0,0.3]
[1741871075034,0.240952,83004.0,82995.0,0.012048]
[1741871075250,0.240952,83004.0,82994.0,0.012049]
[1741871075251,0.240964,83000.0,82994.0,0.012049]
[1741871075466,0.240975,82996.0,82988.0,0.253046]
[1741871075670,0.07366701,83032.0,82987.0,0.0003384]
[1741871075671,0.012049,82988.0,82987.0,0.0003384]
[1741871077121,0.03093086,82988.0,82987.0,0.0003384]
[1741871078168,0.04547171,82988.0,82987.0,0.0003384]
[1741871079953,0.01888186,82988.0,82987.0,0.0003384]
[1741871080368,0.27192886,82988.0,82987.0,0.0003384]
[1741871080594,0.01888186,82988.0,82987.0,0.0003384]
[1741871080816,0.01888186,82988.0,82987.0,0.0123884]
[1741871081043,0.240979,82995.0,82990.0,0.012049]
[1741871081248,0.240979,82995.0,82987.0,0.0123884]
[1741871081249,0.012048,82995.0,82988.0,0.012049]
[1741871081452,0.01887948,82996.0,82988.0,0.012049]
[1741871081629,0.012049,82993.0,82988.0,0.012049]
[1741871081826,0.03092748,82996.0,82990.0,0.012049]
[1741871082040,0.03092748,82996.0,82990.0,0.253039]
[1741871082233,0.012048,82995.0,82989.0,0.240993]
[1741871082488,0.253047,82988.0,82987.0,0.0003384]
[1741871084942,0.26758785,82988.0,82987.0,0.0003384]
[1741871085139,0.34398785,82988.0,82987.0,4e-07]
[1741871086081,0.36287197,82988.0,82987.0,4e-07]
[1741871087339,0.27193112,82988.0,82987.0,4e-07]
[1741871088621,0.01888412,82988.0,82987.0,4e-07]
[1741871088833,0.01888412,82988.0,82987.0,0.2530514]
[1741871089256,1.005804,83014.0,83005.0,0.012047]
[1741871089467,0.01887918,83008.0,83007.0,0.012047]
[1741871089669,0.01887918,83008.0,83005.0,0.012047]
[1741871089880,0.01887918,83008.0,83002.0,0.312047]
[1741871090114,0.01887918,83008.0,83004.0,0.012047]
[1741871090302,0.01887918,83008.0,83007.0,0.012047]
[1741871090560,0.01887918,83008.0,83007.0,0.25299]
[1741871090768,0.0001693,83021.0,83007.0,0.25299]
[1741871090769,0.0001693,83021.0,83020.0,0.25295]
[1741871090984,0.0001693,83021.0,83020.0,0.55295]
[1741871091401,0.0001693,83021.0,83020.0,0.67265099]
[1741871092478,0.0001693,83021.0,83020.0,0.55295]
[1741871092684,0.0001693,83021.0,83020.0,0.67265099]
[1741871092883,0.0001693,83021.0,83020.0,2.17265099]
[1741871093858,0.0001693,83021.0,83020.0,1.812045]
[1741871094059,0.0001693,83021.0,83020.0,2.05295]
[1741871094486,0.252966,83015.0,83014.0,0.0465]
[1741871094646,0.252966,83015.0,83002.0,0.012047]
[1741871094647,0.012046,83014.0,83002.0,0.012047]
[1741871094850,0.012045,83020.0,83012.0,0.240928]
[1741871095218,0.252972,83013.0,83008.0,0.3]
[1741871095466,0.012047,83002.0,82994.0,0.253028]
[1741871095702,0.012047,83002.0,82990.0,0.45348956]
[1741871095703,0.012047,83002.0,82999.0,0.16616]
[1741871095913,0.240955,83003.0,82999.0,0.16616]
[1741871096091,0.012048,83000.0,82999.0,0.16616]
[1741871096300,0.240963,83001.0,82999.0,0.16616]
[1741871096471,0.012047,83008.0,82999.0,0.178208]
[1741871096680,0.240943,83007.0,83001.0,0.240959]
[1741871096879,0.012046,83011.0,83002.0,0.012047]
[1741871097108,0.012047,83006.0,83001.0,0.253007]
[1741871097482,0.012047,83006.0,82999.0,0.419171]
[1741871097483,0.0001693,83021.0,83016.0,0.012045]
[1741871097738,0.0001693,83021.0,83014.0,0.012046]
[1741871097739,0.240905,83020.0,83014.0,0.012046]
[1741871097998,0.0001693,83021.0,83019.0,0.252952]
[1741871098244,0.0001693,83021.0,83020.0,0.012045]
[1741871098484,0.0001693,83021.0,83019.0,0.252952]
[1741871098716,0.0122143,83021.0,83016.0,0.3]
[1741871099124,0.0122143,83021.0,83016.0,0.312045]
[1741871099323,0.0001693,83021.0,83018.0,0.3]
[1741871099566,0.0001693,83021.0,83016.0,0.252959]
[1741871099769,0.240926,83013.0,83012.0,0.3]
[1741871099975,0.012047,83008.0,83002.0,0.012047]
[1741871100182,0.012046,83013.0,83005.0,0.012047]
[1741871100387,0.0001693,83021.0,83019.0,0.252952]
[1741871100594,0.0001693,83021.0,83020.0,0.312045]
[1741871101358,0.0001693,83021.0,83020.0,0.43174599]
[1741871101560,0.0001692,83036.0,83035.0,0.552905]
[1741871101724,0.0001692,83036.0,83035.0,0.83876599]
[1741871102511,0.0001692,83036.0,83035.0,2.33876599]
[1741871103442,0.0008,83069.0,83047.0,0.540827]
[1741871103627,0.0008,83069.0,83047.0,0.67256899]
[1741871103850,0.012838,83069.0,83047.0,0.67256899]
[1741871104053,0.0008,83069.0,83047.0,0.67256899]
[1741871104254,0.0008,83069.0,83047.0,2.17256899]
[1741871104793,0.0122084,83062.0,83047.0,2.218988]
[1741871105085,0.0001694,83062.0,83047.0,2.218988]
[1741871105257,0.0001694,83062.0,83047.0,2.33868899]
[1741871105668,0.012039,83060.0,83047.0,2.33868899]
[1741871105877,0.0126246,83048.0,83047.0,2.218988]
[1741871106165,0.0126246,83048.0,83047.0,2.33868899]
[1741871106743,0.0126246,83048.0,83047.0,0.718988]
[1741871107175,0.0126246,83048.0,83047.0,0.83868899]
[1741871108175,2e-07,83051.0,83050.0,0.557858]
[1741871108495,2e-07,83051.0,83050.0,0.67755899]
[1741871109752,2e-07,83051.0,83050.0,0.67255899]
[1741871110165,2e-07,83051.0,83050.0,0.83863899]
[1741871110388,2e-07,83051.0,83050.0,0.53863899]
[1741871110752,2e-07,83051.0,83050.0,0.83863899]
[1741871111046,0.240768,83068.0,83050.0,0.83863899]
[1741871111047,0.01204,83053.0,83050.0,0.3]
[1741871111273,0.01204,83056.0,83050.0,0.252858]
[1741871111433,0.240801,83056.0,83051.0,0.252852]
[1741871111633,0.012039,83057.0,83051.0,0.252852]
[1741871111838,0.012038,83066.0,83059.0,0.012039]
[1741871112042,0.01886306,83077.0,83059.0,0.012039]
[1741871112043,0.24076,83070.0,83062.0,0.012039]
[1741871112243,0.240772,83066.0,83059.0,0.3]
[1741871112447,0.252792,83072.0,83064.0,0.240777]
[1741871112658,0.0001693,83080.0,83074.0,0.240746]
[1741871112850,0.240753,83073.0,83065.0,0.540775]
[1741871113057,0.012038,83070.0,83065.0,0.3]
[1741871113258,0.240782,83063.0,83060.0,0.16604]
[1741871113437,0.012038,83070.0,83063.0,0.252819]
[1741871113632,0.240757,83071.0,83063.0,0.252819]
[1741871113954,0.3612673,83080.0,83074.0,0.240746]
[1741871113955,0.0001693,83080.0,83074.0,0.240746]
[1741871114154,0.0001693,83080.0,83079.0,0.240734]
[1741871114351,0.0001693,83080.0,83076.0,0.012037]
[1741871114557,0.0001693,83080.0,83077.0,0.24074]
[1741871114754,0.0001693,83080.0,83077.0,0.252777]
[1741871114957,0.24076,83070.0,83061.0,0.012039]
[1741871115163,0.012037,83071.0,83056.0,0.240798]
[1741871115164,0.240781,83063.0,83056.0,0.240798]
[1741871115499,0.012037,83074.0,83064.0,0.012038]
[1741871115619,0.240758,83071.0,83067.0,0.012038]
[1741871115831,0.05,83098.0,83066.0,0.240772]
[1741871115832,0.240729,83081.0,83074.0,0.012037]
[1741871116084,0.0122053,83080.0,83070.0,0.24196375]
[1741871116285,0.252789,83073.0,83067.0,0.012038]
[1741871116513,0.252778,83077.0,83068.0,0.012038]
[1741871116715,0.240739,83078.0,83072.0,0.012037]
[1741871116915,0.012037,83076.0,83068.0,0.012038]
[1741871117114,0.0001693,83080.0,83074.0,0.240747]
[1741871117343,0.0001693,83080.0,83073.0,0.012037]
[1741871117544,0.0001693,83080.0,83071.0,0.252793]
[1741871117778,0.0001693,83080.0,83071.0,0.3]
[1741871117779,0.240744,83076.0,83071.0,0.3]
[1741871117979,0.240748,83075.0,83071.0,0.3]
[1741871118184,0.012039,83058.0,83044.0,0.240835]
[1741871118500,0.361102,83079.0,83030.0,0.005]
[1741871118501,0.012041,83047.0,83038.0,0.012042]
[1741871118709,0.081,83071.0,83024.0,0.012044]
[1741871118710,0.012043,83031.0,83024.0,0.012044]
[1741871118932,0.240884,83028.0,83021.0,0.36060299]
[1741871119109,0.240872,83032.0,83024.0,0.240894]
[1741871119260,0.240896,83024.0,83020.0,0.166]
[1741871119472,0.012045,83022.0,83012.0,0.0123846]
[1741871119735,0.012045,83022.0,83016.0,0.012045]
[1741871119924,0.012043,83029.0,83022.0,0.012045]
[1741871120135,0.012042,83037.0,83022.0,0.00120447]
[1741871120370,0.01887074,83029.0,83028.0,0.012044]
[1741871120778,0.012042,83040.0,83033.0,0.012043]
[1741871120989,0.27176618,83038.0,83033.0,0.25291]
[1741871121153,0.240859,83037.0,83030.0,0.012043]
[1741871121364,0.01886918,83038.0,83032.0,0.24087]
[1741871121583,0.01886918,83038.0,83034.0,0.252906]
[1741871121979,0.01886918,83038.0,83037.0,0.240856]
[1741871122200,0.01886918,83038.0,83037.0,0.540856]
[1741871122414,0.252858,83050.0,83038.0,0.312042]
[1741871122622,0.012043,83030.0,83024.0,0.012044]
[1741871122823,0.012043,83035.0,83029.0,0.252922]
[1741871123037,0.240861,83036.0,83029.0,0.012043]
[1741871123274,0.012041,83048.0,83038.0,0.012042]
[1741871123485,0.01454085,83068.0,83045.0,0.012041]
[1741871123486,0.01204,83055.0,83045.0,0.012041]
[1741871123657,0.01204,83050.0,83045.0,0.012041]
[1741871123867,0.240824,83048.0,83046.0,1.5]
[1741871124079,0.252865,83049.0,83046.0,1.5]
[1741871124275,0.252865,83049.0,83040.0,0.240846]
[1741871124276,0.240844,83042.0,83035.0,0.252902]
[1741871124478,0.012041,83043.0,83035.0,0.012043]
[1741871124638,0.012042,83041.0,83035.0,0.312043]
[1741871124842,0.012042,83041.0,83030.0,0.012043]
[1741871124843,0.012043,83029.0,83028.0,0.4167]
[1741871125060,0.012042,83038.0,83032.0,0.252913]
[1741871125266,0.012042,83038.0,83030.0,0.012043]
[1741871125267,0.252898,83037.0,83030.0,0.012043]
[1741871125688,0.240844,83042.0,83037.0,0.012042]
[1741871125911,0.012042,83041.0,83036.0,0.240856]
[1741871126186,0.252889,83040.0,83033.0,0.012043]
[1741871126399,0.240865,83034.0,83027.0,0.252928]
[1741871126618,0.240829,83047.0,83041.0,0.240843]
[1741871126823,0.252871,83047.0,83041.0,0.240843]
[1741871127063,0.7644,83063.0,83043.0,0.240837]
[1741871127286,0.7644,83063.0,83005.0,0.01454085]
[1741871127287,0.252851,83053.0,83047.0,0.252866]
[1741871127517,0.012039,83059.0,83049.0,0.25286]
[1741871127762,0.252832,83059.0,83053.0,0.01204]
[1741871127951,0.252832,83059.0,83053.0,0.252847]
[1741871128163,0.252832,83059.0,83054.0,0.240806]
[1741871128370,0.252832,83059.0,83053.0,0.252847]
[1741871128611,0.240763,83069.0,83049.0,0.012041]
[1741871128612,0.0001693,83080.0,83069.0,0.012038]
[1741871128790,0.0001693,83080.0,83073.0,0.252787]
[1741871128791,0.012036,83079.0,83073.0,0.252787]
[1741871129020,0.0001693,83080.0,83079.0,0.240734]
[1741871129211,0.0001693,83080.0,83067.0,0.240767]
[1741871129212,0.240749,83074.0,83067.0,0.240767]
[1741871129411,0.240749,83074.0,83068.0,0.3]
[1741871129623,0.012036,83079.0,83070.0,0.312038]
[1741871129624,0.252783,83076.0,83070.0,0.312038]
[1741871130035,0.012039,83061.0,83043.0,0.6913]
[1741871130244,0.012039,83061.0,83056.0,0.3]
[1741871130245,0.012039,83057.0,83056.0,0.3]
[1741871130450,0.252841,83056.0,83046.0,0.552869]
[1741871130600,0.240777,83065.0,83054.0,0.01204]
[1741871130813,0.240777,83065.0,83057.0,0.240795]
[1741871130814,0.252815,83065.0,83057.0,0.240795]
[1741871131042,0.240781,83063.0,83058.0,0.012039]
[1741871131235,0.01886293,83060.0,83058.0,0.012039]
[1741871131613,0.01886293,83060.0,83059.0,0.252831]
[1741871131815,0.01886293,83060.0,83059.0,0.552831]
[1741871132437,0.01886293,83060.0,83054.0,0.01204]
[1741871132438,0.01204,83053.0,83044.0,0.4167]
[1741871132644,0.240801,83056.0,83044.0,0.4167]
[1741871132645,0.01204,83056.0,83048.0,0.012041]
[1741871132818,0.01204,83054.0,83049.0,0.252862]
[1741871133021,0.012041,83047.0,83044.0,0.4167]
[1741871133244,0.252871,83046.0,83044.0,0.4167]
[1741871133590,0.012041,83045.0,83044.0,0.4167]
[1741871133835,0.25287,83047.0,83044.0,0.4167]
[1741871134041,0.252854,83052.0,83045.0,0.012041]
[1741871134260,0.01204,83055.0,83049.0,0.012041]
[1741871134463,0.01204,83050.0,83044.0,0.4167]
[1741871134607,0.012041,83045.0,83044.0,0.4167]
[1741871134817,0.012042,83037.0,83036.0,0.0003384]
[1741871135026,0.252898,83037.0,83036.0,0.0003384]
[1741871135404,0.002087,83037.0,83036.0,0.0003384]
[1741871135606,0.002087,83037.0,83036.0,0.2532394]
[1741871135806,0.240787,83061.0,83036.0,0.0003384]
[1741871136111,0.01204,83050.0,83043.0,0.012041]
[1741871136307,0.252851,83053.0,83043.0,0.012041]
[1741871136537,0.00210614,83049.0,83040.0,0.552887]
[1741871136769,0.01204,83050.0,83040.0,0.3]
[1741871136770,0.240836,83044.0,83040.0,0.3]
[1741871136919,0.012042,83038.0,83037.0,0.4167]
[1741871137515,0.012042,83038.0,83036.0,0.0003384]
[1741871137516,0.252898,83037.0,83036.0,0.0003384]
[1741871137721,0.252898,83037.0,83036.0,4e-07]
[1741871137722,0.26743885,83037.0,83036.0,4e-07]
[1741871137931,0.35954373,83037.0,83036.0,4e-07]
[1741871138356,0.67159347,83037.0,83036.0,4e-07]
[1741871138557,0.252972,83013.0,83008.0,0.1056129]
[1741871138792,0.26751285,83013.0,83008.0,0.1056129]
[1741871139005,0.34630675,83013.0,83008.0,0.1056129]
[1741871140083,0.36518313,83013.0,83008.0,0.1056129]
[1741871140852,0.35064228,83013.0,83008.0,0.1056129]
[1741871141218,0.3692388,83013.0,83012.0,6e-07]
[1741871142861,0.00604957,83013.0,83012.0,6e-07]
[1741871143298,0.25902157,83013.0,83012.0,6e-07]
[1741871145370,0.00604957,83013.0,83012.0,6e-07]
[1741871145582,0.01809557,83013.0,83012.0,6e-07]
[1741871145771,0.00604957,83013.0,83012.0,6e-07]
[1741871145973,0.01809557,83013.0,83012.0,6e-07]
[1741871146982,0.00604957,83013.0,83012.0,0.0120466]
[1741871147344,0.76464,83015.0,83012.0,6e-07]
[1741871147589,0.76464,83015.0,83014.0,0.012046]
[1741871147789,0.76464,83015.0,83012.0,6e-07]
[1741871147790,0.00359838,83014.0,83012.0,0.0120466]
[1741871148006,0.252954,83019.0,83012.0,0.0120466]
[1741871148214,0.252954,83019.0,83013.0,0.252969]
[1741871148424,0.240843,83042.0,83032.0,0.012043]
[1741871148622,0.012042,83036.0,83029.0,0.252921]
[1741871148868,0.240868,83033.0,83029.0,0.240879]
[1741871149076,0.240868,83033.0,83025.0,0.240889]
[1741871149077,0.76484,83038.0,83037.0,0.012042]
[1741871149305,0.01887049,83036.0,83035.0,0.240859]
[1741871149688,0.01887049,83036.0,83034.0,0.012043]
[1741871149889,0.01887049,83036.0,83035.0,0.240862]
[1741871150097,0.01887049,83036.0,83034.0,0.012043]
[1741871150300,0.01887049,83036.0,83032.0,0.012043]
[1741871150526,0.012045,83022.0,83014.0,0.3]
[1741871150724,0.012045,83022.0,83017.0,0.312045]
[1741871150933,0.252947,83022.0,83017.0,0.3]
[1741871151136,0.252916,83032.0,83025.0,0.012044]
[1741871151384,0.01887202,83028.0,83027.0,0.012044]
[1741871151598,0.01887202,83028.0,83027.0,0.312044]
[1741871151854,0.76484,83038.0,83037.0,0.252898]
[1741871152106,0.01887041,83038.0,83037.0,0.252898]
[1741871152832,0.01887041,83038.0,83037.0,0.552898]
[1741871153071,0.012041,83048.0,83042.0,0.012042]
[1741871153314,0.012041,83043.0,83034.0,0.3]
[1741871153555,0.252898,83038.0,83034.0,0.3]
[1741871153798,0.240831,83046.0,83040.0,0.252887]
[1741871154056,0.012041,83043.0,83038.0,0.252895]
[1741871154298,0.00360189,83045.0,83043.0,0.240838]
[1741871154530,0.00360189,83045.0,83038.0,0.252892]
[1741871154531,0.012041,83045.0,83038.0,0.252892]
[1741871154765,0.252882,83043.0,83037.0,0.240853]
[1741871154996,0.252882,83043.0,83037.0,0.252895]
[1741871155475,0.240859,83036.0,83032.0,0.3461]
[1741871155734,0.252888,83041.0,83033.0,0.012043]
[1741871156193,0.012042,83039.0,83033.0,0.012043]
[1741871156439,0.252892,83039.0,83033.0,0.252908]
[1741871156675,0.252897,83038.0,83032.0,0.012043]
[1741871156884,0.252897,83038.0,83030.0,0.012043]
[1741871156885,0.252905,83035.0,83030.0,0.012043]
[1741871157087,0.252905,83035.0,83029.0,0.4167]
[1741871157088,0.240867,83034.0,83029.0,0.4167]
[1741871157288,0.012043,83033.0,83029.0,0.4167]
[1741871157493,0.240867,83034.0,83029.0,0.66962]
[1741871157714,0.25291,83034.0,83029.0,0.66962]
[1741871157924,0.252919,83030.0,83029.0,0.4167]
[1741871158346,0.252919,83030.0,83008.0,0.178087]
[1741871158347,0.252967,83015.0,83008.0,0.178087]
[1741871158554,0.240916,83017.0,83010.0,0.012046]
[1741871158734,0.00126409,83014.0,83013.0,0.012046]
[1741871158939,0.00126409,83014.0,83012.0,0.2409276]
[1741871159084,0.00126409,83014.0,83013.0,0.012046]
[1741871159280,0.01887273,83015.0,83014.0,0.252969]
[1741871160149,0.252972,83013.0,83012.0,6e-07]
[1741871160500,0.2542466,83013.0,83012.0,6e-07]
[1741871161196,0.26878745,83013.0,83012.0,6e-07]
[1741871161558,0.2807501,83013.0,83012.0,6e-07]
[1741871162534,0.253047,82988.0,82987.0,4e-07]
[1741871162825,0.25424456,82988.0,82987.0,4e-07]
[1741871165218,0.26878541,82988.0,82987.0,4e-07]
[1741871166075,0.25424456,82988.0,82987.0,4e-07]
[1741871166857,0.24219556,82988.0,82987.0,4e-07]
[1741871167059,0.25424456,82988.0,82987.0,4e-07]
[1741871167262,0.27312557,82988.0,82987.0,4e-07]
[1741871169645,0.28766642,82988.0,82987.0,4e-07]
[1741871169850,0.27441986,82988.0,82987.0,4e-07]
[1741871170065,0.40389085,82987.0,82986.0,6e-07]
[1741871170274,0.40389085,82987.0,82960.0,0.0003382]
[1741871170275,0.26767085,82961.0,82960.0,0.0003382]
[1741871170488,0.26767085,82961.0,82952.0,0.0003382]
[1741871170489,0.26769185,82954.0,82953.0,2e-07]
[1741871170696,0.012055,82952.0,82951.0,4e-07]
[1741871170900,0.02659585,82952.0,82951.0,4e-07]
[1741871171113,0.02737701,82952.0,82951.0,4e-07]
[1741871171318,0.253228,82929.0,82928.0,0.0003384]
[1741871171525,0.00649364,82929.0,82928.0,0.0003384]
[1741871171731,0.012058,82929.0,82928.0,0.0003384]
[1741871172156,0.03380824,82929.0,82928.0,0.0003384]
[1741871172363,0.05270366,82929.0,82928.0,0.0003384]
[1741871172571,0.02610481,82929.0,82928.0,0.0003384]
[1741871172776,0.00720939,82929.0,82928.0,0.0003384]
[1741871172982,0.01926739,82929.0,82928.0,0.0003384]
[1741871174866,0.07304413,82929.0,82928.0,0.0003384]
[1741871174993,0.08758498,82929.0,82928.0,0.0003384]
[1741871175200,1.09411498,82929.0,82928.0,0.0003384]
[1741871175776,1.11301179,82929.0,82928.0,0.0003384]
[1741871175991,0.012062,82902.0,82892.0,7.3e-07]
[1741871176194,0.012062,82902.0,82854.0,0.241386]
[1741871176195,0.012066,82872.0,82869.0,0.1056129]
[1741871176399,0.012066,82872.0,82848.0,0.4167]
[1741871176400,1.184882,82872.0,82848.0,0.4167]
[1741871176605,0.76589282,82872.0,82860.0,0.012068]
[1741871176811,0.76589282,82872.0,82869.0,0.012067]
[1741871177216,1.03820333,82872.0,82858.0,0.241375]
[1741871177422,1.03820333,82872.0,82860.0,0.24137]
[1741871177623,0.78480133,82872.0,82865.0,0.012067]
[1741871177817,0.79686733,82872.0,82866.0,0.241352]
[1741871178021,0.79686733,82872.0,82862.0,0.253431]
[1741871178214,0.78008133,82872.0,82868.0,0.012067]
[1741871178436,0.01944133,82872.0,82871.0,0.012866]
[1741871178623,0.00053282,82872.0,82871.0,0.4337735]
[1741871178787,0.012062,82900.0,82893.0,0.012063]
[1741871179000,0.012063,82893.0,82880.0,0.241311]
[1741871179249,0.012065,82880.0,82873.0,0.3]
[1741871179447,0.01890526,82888.0,82885.0,0.241297]
[1741871179448,0.01780259,82888.0,82885.0,0.241297]
[1741871179648,0.241304,82883.0,82875.0,0.012066]
[1741871179808,0.012066,82877.0,82872.0,0.428766]
[1741871180007,0.01780259,82888.0,82876.0,0.253388]
[1741871180008,0.0005504,82882.0,82876.0,0.253388]
[1741871180215,0.01780259,82888.0,82882.0,0.012065]
[1741871180420,0.01780259,82888.0,82886.0,0.012064]
[1741871180615,0.012065,82878.0,82873.0,0.3]
[1741871180822,0.012066,82873.0,82871.0,0.0008]
[1741871181029,0.253394,82875.0,82871.0,0.0008]
[1741871181234,0.012066,82874.0,82871.0,0.0008]
[1741871181431,0.01890626,82873.0,82871.0,0.012866]
[1741871181641,0.01890626,82873.0,82871.0,0.0008]
[1741871182900,0.01890626,82873.0,82871.0,0.012866]
[1741871183105,0.01890626,82873.0,82872.0,0.428766]
[1741871184612,0.76588,82891.0,82886.0,0.012064]
[1741871184819,0.76588,82891.0,82890.0,0.012064]
[1741871185233,0.012061,82910.0,82890.0,0.7167]
[1741871185438,0.012062,82903.0,82897.0,0.012063]
[1741871185665,0.76588,82912.0,82901.0,0.012062]
[1741871185894,0.253299,82906.0,82898.0,0.012063]
[1741871186142,0.012062,82899.0,82895.0,0.3]
[1741871186341,0.253344,82891.0,82886.0,0.241294]
[1741871186554,0.253329,82896.0,82890.0,0.241282]
[1741871186790,0.253337,82894.0,82889.0,0.012064]
[1741871187004,0.241284,82890.0,82888.0,0.0464]
[1741871187221,0.241292,82887.0,82882.0,0.3]
[1741871187439,0.253374,82881.0,82880.0,0.4167]
[1741871187659,0.253374,82881.0,82869.0,0.253408]
[1741871187660,0.012066,82873.0,82868.0,0.1662]
[1741871187865,0.012065,82878.0,82871.0,0.012866]
[1741871188094,0.012064,82886.0,82879.0,0.012065]
[1741871188309,0.241263,82897.0,82883.0,0.012065]
[1741871188520,0.241279,82892.0,82883.0,0.012065]
[1741871188733,0.012065,82880.0,82872.0,0.3]
[1741871188937,0.012065,82880.0,82871.0,0.012866]
[1741871188938,0.25338,82880.0,82873.0,0.012066]
[1741871189153,0.012064,82891.0,82881.0,0.012065]
[1741871189370,0.0189034,82894.0,82873.0,0.00120659]
[1741871189371,0.0189034,82894.0,82892.0,0.253339]